bitfinex/quotes_BTCUSD_20250505
["timestamp","ask_amount","ask_price","bid_price","bid_amount"]
[1746413477526,0.001,94690.0,94680.0,0.08818843]
[1746413478406,0.001,94690.0,94681.0,0.00983156]
[1746413479106,0.01156602,94690.0,94681.0,0.00983156]
[1746413479405,0.01156602,94690.0,94680.0,0.08818843]
[1746413479406,0.01156602,94690.0,94682.0,0.00983156]
[1746413479611,0.01156602,94690.0,94683.0,0.08818843]
[1746413481556,0.02156602,94690.0,94683.0,0.08818843]
[1746413489880,0.02156602,94690.0,94684.0,0.00982246]
[1746413490675,0.02156602,94690.0,94683.0,0.08818843]
[1746413492339,0.02156602,94690.0,94684.0,0.00982504]
[1746413492968,0.02156602,94690.0,94683.0,0.08818843]
[1746413493376,0.02156602,94690.0,94683.0,0.09700727]
[1746413494118,0.02156602,94690.0,94683.0,0.08818843]
[1746413494625,0.02156602,94690.0,94684.0,0.01964748]
[1746413494940,0.02156602,94690.0,94684.0,0.0294699]
[1746413495144,0.02156602,94690.0,94684.0,0.00982242]
[1746413495750,0.02156602,94690.0,94685.0,0.00982242]
[1746413496524,0.02156602,94690.0,94683.0,0.08818843]
[1746413496871,0.02156602,94690.0,94684.0,0.01964821]
[1746413497143,0.02156602,94690.0,94685.0,0.08818843]
[1746413502443,0.02156602,94690.0,94686.0,0.00982076]
[1746413502750,0.011,94690.0,94686.0,0.00982076]
[1746413502951,0.01,94690.0,94686.0,0.00982076]
[1746413503433,0.01,94690.0,94687.0,0.01964047]
[1746413503774,0.01,94690.0,94688.0,0.02946123]
[1746413503978,0.01,94690.0,94689.0,0.08818843]
[1746413508533,0.0208764,94690.0,94689.0,0.08818843]
[1746413513271,0.0208764,94690.0,94689.0,0.0989701]
[1746413513478,0.0208764,94690.0,94689.0,0.08818843]
[1746413515660,0.0108764,94690.0,94689.0,0.07818843]
[1746413515865,0.001,94694.0,94689.0,0.07818843]
[1746413516099,0.0173,94694.0,94689.0,0.07818843]
[1746413517038,0.02800207,94694.0,94689.0,0.07818843]
[1746413517488,0.02900207,94694.0,94689.0,0.07818843]
[1746413519445,0.0273787,94694.0,94689.0,0.07818843]
[1746413519628,0.01170207,94694.0,94689.0,0.07818843]
[1746413521309,0.01170207,94694.0,94689.0,0.07718843]
[1746413523078,0.01170207,94694.0,94689.0,0.07818843]
[1746413530239,0.01276207,94694.0,94689.0,0.08600727]
[1746413530455,0.01276207,94694.0,94689.0,0.07818843]
[1746413543818,0.00206,94694.0,94690.0,0.0155]
[1746413543992,0.00206,94694.0,94690.0,0.0317]
[1746413544152,0.00206,94694.0,94692.0,0.0317]
[1746413544351,0.00206,94694.0,94693.0,0.0317]
[1746413545119,0.00306,94694.0,94693.0,0.06112603]
[1746413545251,0.00206,94694.0,94693.0,0.06112603]
[1746413545604,0.00106,94694.0,94693.0,0.05132238]
[1746413545775,0.00206,94694.0,94693.0,0.05732238]
[1746413546184,0.00206,94694.0,94693.0,0.0377]
[1746413547015,0.00206,94694.0,94693.0,0.11488843]
[1746413547151,0.00206,94694.0,94693.0,0.11888843]
[1746413547567,0.00206,94694.0,94693.0,0.13077727]
[1746413547989,0.00206,94694.0,94693.0,0.15039965]
[1746413548471,0.00206,94694.0,94693.0,0.19766618]
[1746413548991,0.01043179,94704.0,94693.0,0.19766618]
[1746413549253,0.001,94709.0,94693.0,0.19766618]
[1746413549450,0.001,94709.0,94694.0,0.039389]
[1746413549649,0.00206,94709.0,94694.0,0.039389]
[1746413550911,0.00206,94709.0,94694.0,0.040389]
[1746413551667,0.00206,94709.0,94694.0,0.042389]
[1746413552461,0.00206,94709.0,94695.0,0.0157]
[1746413552661,0.00206,94709.0,94696.0,0.02106328]
[1746413552841,0.00206,94709.0,94697.0,0.07718843]
[1746413554403,0.00206,94709.0,94697.0,0.08018843]
[1746413555186,0.00206,94709.0,94697.0,0.08118843]
[1746413564606,0.00206,94709.0,94698.0,0.07718843]
[1746413565544,0.00206,94709.0,94699.0,0.02030526]
[1746413566936,0.00206,94709.0,94699.0,0.02430526]
[1746413568451,0.00206,94709.0,94699.0,0.004]
[1746413570385,0.00206,94709.0,94700.0,0.07718843]
[1746413571499,0.00206,94709.0,94700.0,0.08018843]
[1746413572666,0.00206,94709.0,94700.0,0.08118843]
[1746413585773,0.00206,94709.0,94701.0,0.01962679]
[1746413586369,0.00206,94709.0,94702.0,0.01962679]
[1746413586681,0.00206,94709.0,94703.0,0.01962679]
[1746413587038,0.00206,94709.0,94702.0,0.01962679]
[1746413587463,0.00206,94709.0,94703.0,0.01962679]
[1746413587980,0.00206,94709.0,94703.0,0.003]
[1746413588139,0.00206,94709.0,94704.0,0.07718843]
[1746413588744,0.00206,94709.0,94706.0,0.0154]
[1746413588966,0.00206,94709.0,94707.0,0.0152]
[1746413589129,0.00206,94709.0,94708.0,0.0154]
[1746413590888,0.00206,94709.0,94708.0,0.0184]
[1746413591510,0.00206,94709.0,94708.0,0.12532928]
[1746413591716,0.00206,94709.0,94708.0,0.14475739]
[1746413592075,0.00206,94709.0,94708.0,0.164382]
[1746413592293,0.00206,94709.0,94708.0,0.165382]
[1746413592614,0.00206,94709.0,94708.0,0.164382]
[1746413593336,0.00206,94709.0,94708.0,0.167382]
[1746413596063,0.00206,94709.0,94708.0,0.21464881]
[1746413596571,0.01040632,94728.0,94709.0,0.01454085]
[1746413596767,0.00012023,94728.0,94711.0,0.01454085]
[1746413596948,0.00118023,94728.0,94711.0,0.03416546]
[1746413597388,0.00118023,94728.0,94711.0,0.01454085]
[1746413597719,0.00118023,94728.0,94713.0,0.0151]
[1746413597913,0.00218023,94728.0,94713.0,0.0301]
[1746413598131,0.00218023,94728.0,94714.0,0.02247689]
[1746413598344,0.00118023,94728.0,94714.0,0.02247689]
[1746413598620,0.00218023,94728.0,94716.0,0.04464085]
[1746413598820,0.00218023,94728.0,94716.0,0.01454085]
[1746413599046,0.00118023,94728.0,94720.0,0.0151]
[1746413599268,0.00218023,94728.0,94720.0,0.0151]
[1746413599791,0.00218023,94728.0,94721.0,0.07718843]
[1746413600016,0.00118023,94728.0,94721.0,0.07718843]
[1746413601044,0.00118023,94728.0,94721.0,0.08218843]
[1746413601949,0.00118023,94728.0,94721.0,0.08418843]
[1746413602302,0.00118023,94728.0,94721.0,0.08218843]
[1746413603133,0.00118023,94728.0,94721.0,0.07718843]
[1746413603337,0.00118023,94728.0,94721.0,0.08018843]
[1746413603948,0.01778023,94728.0,94721.0,0.08018843]
[1746413604155,0.03523934,94727.0,94721.0,0.003]
[1746413604524,0.0153,94725.0,94721.0,0.003]
[1746413604741,0.0153,94723.0,94721.0,0.003]
[1746413604893,0.03343971,94722.0,94721.0,0.003]
[1746413605294,0.03449971,94722.0,94721.0,0.003]
[1746413605503,0.03449971,94722.0,94711.0,0.04931228]
[1746413605859,0.0155,94719.0,94711.0,0.04931228]
[1746413606057,0.00263995,94718.0,94711.0,0.04931228]
[1746413606641,0.00369995,94718.0,94711.0,0.04931228]
[1746413606852,0.34369995,94718.0,94711.0,0.04931228]
[1746413606992,0.0308,94717.0,94711.0,0.04931228]
[1746413607203,0.01636,94717.0,94692.0,0.07718843]
[1746413607411,0.0157,94708.0,94692.0,0.07718843]
[1746413607628,0.00261601,94707.0,94692.0,0.07718843]
[1746413607877,0.00367601,94707.0,94692.0,0.07718843]
[1746413609413,0.00367601,94707.0,94694.0,0.3516]
[1746413609566,0.00367601,94707.0,94694.0,0.3536]
[1746413610196,0.015,94706.0,94694.0,0.3536]
[1746413610384,0.00261601,94705.0,94694.0,0.3536]
[1746413610556,0.00367601,94705.0,94694.0,0.3536]
[1746413611896,0.00367601,94705.0,94694.0,0.3516]
[1746413612119,0.00367601,94705.0,94694.0,0.3526]
[1746413612421,0.00367601,94705.0,94694.0,0.3536]
[1746413612798,0.00367601,94705.0,94694.0,0.3526]
[1746413613153,0.00367601,94705.0,94694.0,0.3546]
[1746413615823,0.00367601,94705.0,94694.0,0.005]
[1746413625676,0.00367601,94705.0,94694.0,0.00492278]
[1746413640945,0.00106,94705.0,94694.0,0.00492278]
[1746413641344,0.00161601,94704.0,94694.0,0.00492278]
[1746413641681,0.00264017,94704.0,94674.0,0.08402964]
[1746413642278,0.00264017,94704.0,94675.0,0.01576572]
[1746413642619,0.00264017,94704.0,94694.0,0.002]
[1746413643042,0.00264017,94704.0,94675.0,0.42406572]
[1746413643244,0.34,94699.0,94675.0,0.4083]
[1746413643424,0.0164,94697.0,94675.0,0.4083]
[1746413643657,0.0164,94695.0,94675.0,0.4083]
[1746413643840,0.0318,94695.0,94694.0,0.002]
[1746413644205,0.0318,94695.0,94675.0,0.4083]
[1746413644543,0.0318,94695.0,94675.0,0.40875546]
[1746413644877,0.0318,94695.0,94694.0,0.001]
[1746413645043,0.08765526,94695.0,94694.0,0.001]
[1746413645242,0.0318,94695.0,94675.0,0.40875546]
[1746413645806,0.00264055,94694.0,94675.0,0.40875546]
[1746413647438,0.00264055,94694.0,94675.0,0.40589569]
[1746413648004,0.0326,94688.0,94675.0,0.00045546]
[1746413648335,0.0166,94686.0,94675.0,0.00045546]
[1746413648576,0.05373841,94685.0,94675.0,0.00045546]
[1746413650576,0.05473841,94685.0,94675.0,0.00045546]
[1746413650778,0.00364083,94685.0,94675.0,0.00045546]
[1746413658265,0.0304,94683.0,94675.0,0.00045546]
[1746413658591,0.015,94681.0,94675.0,0.00045546]
[1746413658797,0.00264101,94680.0,94675.0,0.00045546]
[1746413658930,0.0304,94679.0,94675.0,0.00045546]
[1746413659131,0.0304,94676.0,94675.0,0.00045546]
[1746413659350,0.03304101,94676.0,94675.0,0.00045546]
[1746413660398,0.0304,94676.0,94675.0,0.00145546]
[1746413660786,0.0304,94676.0,94675.0,0.00045546]
[1746413661891,0.03816093,94676.0,94675.0,0.00045546]
[1746413664138,0.02276093,94676.0,94675.0,0.00045546]
[1746413664341,0.03322875,94676.0,94675.0,0.00045546]
[1746413666174,0.04942875,94676.0,94675.0,0.00045546]
[1746413666300,0.03322875,94676.0,94675.0,0.00045546]
[1746413667292,0.01822875,94676.0,94675.0,0.00045546]
[1746413667713,0.0161,94689.0,94675.0,0.01605546]
[1746413667897,0.00264074,94688.0,94675.0,0.01605546]
[1746413668697,0.00264074,94688.0,94675.0,0.00045546]
[1746413669098,0.00782359,94688.0,94675.0,0.00045546]
[1746413669297,0.05260673,94687.0,94675.0,0.00045546]
[1746413669519,0.0158,94686.0,94675.0,0.00045546]
[1746413669718,0.0026409,94685.0,94675.0,0.00045546]
[1746413671339,0.0046409,94685.0,94675.0,0.00045546]
[1746413683152,0.002,94685.0,94675.0,0.00045546]
[1746413684325,0.00810033,94688.0,94675.0,0.00045546]
[1746413684530,0.00264078,94687.0,94675.0,0.00045546]
[1746413684740,0.00264077,94687.0,94675.0,0.00045546]
[1746413684897,0.01072522,94689.0,94675.0,0.00045546]
[1746413685096,0.0166,94691.0,94675.0,0.00045546]
[1746413685642,0.002,94685.0,94675.0,0.00045546]
[1746413686152,0.0077694,94688.0,94675.0,0.00045546]
[1746413686566,0.00264077,94687.0,94675.0,0.00045546]
[1746413688833,0.002,94687.0,94675.0,0.00045546]
[1746413689167,0.00464077,94687.0,94675.0,0.00045546]
[1746413696159,0.01464677,94687.0,94675.0,0.00045546]
[1746413708182,0.0156,94686.0,94675.0,0.00045546]
[1746413708358,0.00918223,94685.0,94675.0,0.00045546]
[1746413711460,0.01018223,94685.0,94675.0,0.00045546]
[1746413712082,0.00918223,94685.0,94675.0,0.00045546]
[1746413712449,0.01118223,94685.0,94675.0,0.00045546]
[1746413722138,0.01118223,94685.0,94676.0,0.0152]
[1746413722365,0.002,94685.0,94676.0,0.0152]
[1746413723015,0.010006,94687.0,94676.0,0.0152]
[1746413723441,0.001,94685.0,94676.0,0.0152]
[1746413723859,0.00264056,94686.0,94676.0,0.0152]
[1746413724207,0.00264056,94686.0,94676.0,0.0162]
[1746413724640,0.010006,94687.0,94676.0,0.0152]
[1746413724882,0.010006,94687.0,94677.0,0.0152]
[1746413725229,0.010006,94687.0,94679.0,0.0152]
[1746413725440,0.010006,94687.0,94680.0,0.01715222]
[1746413725671,0.010006,94687.0,94681.0,0.0154]
[1746413725869,0.010006,94687.0,94682.0,0.0151]
[1746413726074,0.010006,94687.0,94676.0,0.001]
[1746413726217,0.010006,94687.0,94680.0,0.0305]
[1746413726419,0.010006,94687.0,94681.0,0.0151]
[1746413727117,0.010006,94687.0,94682.0,0.0165]
[1746413727418,0.010006,94687.0,94684.0,0.0165]
[1746413727614,0.010006,94687.0,94682.0,0.0331]
[1746413727818,0.010006,94687.0,94683.0,0.0165]
[1746413728073,0.010006,94683.0,94682.0,0.0331]
[1746413729658,0.010006,94683.0,94682.0,0.0351]
[1746413730240,0.010006,94683.0,94682.0,0.0331]
[1746413730538,0.010006,94683.0,94682.0,0.0361]
[1746413745762,0.02657673,94683.0,94682.0,0.0196]
[1746413745971,0.010006,94683.0,94682.0,0.0196]
[1746413749122,0.02657659,94683.0,94682.0,0.0196]
[1746413752658,0.02657659,94683.0,94682.0,0.0351]
[1746413753028,0.010006,94683.0,94682.0,0.0351]
[1746413753736,0.010006,94683.0,94682.0,0.0321]
[1746413754147,0.010006,94683.0,94682.0,0.0341]
[1746413754584,0.010006,94683.0,94682.0,0.0321]
[1746413754938,0.010006,94683.0,94682.0,0.0351]
[1746413758191,0.02657619,94683.0,94682.0,0.44054023]
[1746413758804,0.010006,94683.0,94682.0,0.44054023]
[1746413759557,0.010006,94683.0,94682.0,0.40844023]
[1746413759788,0.042206,94683.0,94682.0,0.40844023]
[1746413760668,0.042206,94683.0,94682.0,0.40544023]
[1746413760882,0.042206,94683.0,94682.0,0.40744023]
[1746413761564,0.042206,94683.0,94682.0,0.40544023]
[1746413761783,0.044206,94683.0,94682.0,0.40544023]
[1746413763076,0.06077825,94683.0,94682.0,0.40544023]
[1746413763394,0.06685608,94683.0,94682.0,0.40544023]
[1746413764011,0.06685608,94683.0,94675.0,0.00045546]
[1746413764214,0.00264079,94682.0,94675.0,0.00045546]
[1746413765354,0.01052086,94682.0,94675.0,0.00045546]
[1746413765584,0.00264079,94682.0,94675.0,0.00045546]
[1746413765788,0.00694969,94681.0,94675.0,0.00045546]
[1746413765995,0.0162,94679.0,94675.0,0.00045546]
[1746413766238,0.00264089,94678.0,94654.0,0.39642569]
[1746413766388,0.0313,94677.0,94654.0,0.39642569]
[1746413766762,0.0162,94674.0,94654.0,0.39642569]
[1746413766918,0.00264089,94673.0,94654.0,0.39642569]
[1746413768383,0.00264089,94673.0,94654.0,0.39742569]
[1746413768596,0.0301,94672.0,94654.0,0.001]
[1746413768814,0.00264121,94671.0,94654.0,0.001]
[1746413768989,0.0301,94670.0,94654.0,0.001]
[1746413769188,0.00264125,94669.0,94654.0,0.001]
[1746413769455,0.0301,94668.0,94645.0,0.39642569]
[1746413769652,0.0301,94666.0,94645.0,0.39642569]
[1746413769784,0.0301,94664.0,94645.0,0.39642569]
[1746413769991,0.00264126,94663.0,94645.0,0.39642569]
[1746413783280,0.01657703,94661.0,94645.0,0.39642569]
[1746413783486,0.00264126,94660.0,94645.0,0.39642569]
[1746413785485,0.00264126,94660.0,94651.0,0.002]
[1746413785956,0.00264126,94660.0,94651.0,0.001]
[1746413786158,0.00264126,94660.0,94651.0,0.002]
[1746413789121,0.00264126,94659.0,94651.0,0.002]
[1746413789323,0.00264126,94663.0,94651.0,0.002]
[1746413789939,0.00264126,94663.0,94651.0,0.001]
[1746413791121,0.0165,94661.0,94651.0,0.001]
[1746413791312,0.0165,94659.0,94651.0,0.002]
[1746413791514,0.0165,94657.0,94651.0,0.002]
[1746413791714,0.0165,94654.0,94651.0,0.001]
[1746413791892,0.0321,94652.0,94651.0,0.001]
[1746413792316,0.0321,94652.0,94620.0,0.74626569]
[1746413792513,0.0321,94650.0,94620.0,0.74626569]
[1746413792746,0.0321,94648.0,94620.0,0.74626569]
[1746413792917,0.00264182,94647.0,94620.0,0.74626569]
[1746413793125,0.0165791,94644.0,94631.0,0.00104552]
[1746413793279,0.033,94642.0,94631.0,0.00104552]
[1746413793497,0.00264182,94641.0,94631.0,0.00104552]
[1746413797280,0.01339736,94641.0,94631.0,0.00104552]
[1746413797476,0.00264182,94641.0,94631.0,0.00104552]
[1746413800851,0.0165794,94639.0,94631.0,0.00104552]
[1746413801037,0.00264182,94638.0,94631.0,0.00104552]
[1746413801799,0.00890833,94638.0,94631.0,0.00104552]
[1746413802002,0.00890833,94638.0,94631.0,0.00204552]
[1746413803227,0.00890833,94638.0,94631.0,0.00104552]
[1746413803625,0.00890833,94638.0,94631.0,0.00204552]
[1746413804527,0.00264182,94638.0,94631.0,0.00204552]
[1746413813616,0.0026418,94637.0,94631.0,0.00204552]
[1746413813762,0.0026418,94640.0,94631.0,0.00204552]
[1746413814579,0.0026418,94640.0,94631.0,0.00104552]
[1746413814940,0.0026418,94639.0,94631.0,0.00104552]
[1746413815791,0.0192418,94638.0,94631.0,0.00104552]
[1746413816395,0.0192418,94638.0,94631.0,0.00204552]
[1746413816600,0.01657922,94637.0,94631.0,0.00204552]
[1746413816825,0.0183418,94636.0,94631.0,0.00104552]
[1746413817146,0.0183418,94636.0,94631.0,0.00204552]
[1746413817627,0.0183418,94636.0,94631.0,0.00104552]
[1746413817829,0.0183418,94636.0,94631.0,0.00304552]
[1746413818617,0.00621478,94635.0,94631.0,0.00304552]
[1746413819454,0.00621478,94635.0,94631.0,0.00104552]
[1746413819611,0.00621478,94635.0,94631.0,0.00304552]
[1746413819996,0.0026418,94640.0,94631.0,0.00304552]
[1746413820237,0.01062681,94641.0,94631.0,0.00304552]
[1746413820438,0.00264169,94648.0,94631.0,0.00304552]
[1746413820662,0.00264169,94648.0,94631.0,0.00104552]
[1746413821402,0.00264169,94648.0,94631.0,0.00304552]
[1746413822508,0.01332063,94648.0,94631.0,0.00104552]
[1746413822673,0.01432063,94648.0,94631.0,0.00104552]
[1746413822886,0.00364169,94648.0,94631.0,0.00104552]
[1746413823950,0.010006,94637.0,94631.0,0.00104552]
[1746413825627,0.010006,94637.0,94631.0,0.00304552]
[1746413828880,0.010006,94637.0,94632.0,0.0015552]
[1746413829085,0.010006,94637.0,94633.0,0.0327]
[1746413829516,0.010006,94637.0,94631.0,0.00304552]
[1746413829855,0.010006,94637.0,94632.0,0.0166]
[1746413829991,0.010006,94637.0,94633.0,0.0327]
[1746413830467,0.010006,94637.0,94634.0,0.0154]
[1746413830870,0.010006,94637.0,94632.0,0.002]
[1746413831070,0.010006,94637.0,94632.0,0.0184]
[1746413831304,0.010006,94637.0,94633.0,0.0164]
[1746413833164,0.010006,94637.0,94633.0,0.0184]
[1746413835789,0.010006,94637.0,94633.0,0.002]
[1746413852743,0.02658466,94637.0,94633.0,0.002]
[1746413856217,0.010006,94637.0,94633.0,0.002]
[1746413856516,0.011066,94637.0,94633.0,0.002]
[1746413860822,0.02764469,94637.0,94633.0,0.002]
[1746413861793,0.011066,94637.0,94633.0,0.002]
[1746413864140,0.026366,94637.0,94633.0,0.002]
[1746413864751,0.0153,94636.0,94633.0,0.002]
[1746413865111,0.01636,94636.0,94633.0,0.002]
[1746413866027,0.02435174,94636.0,94631.0,0.00104552]
[1746413866320,0.02565174,94636.0,94633.0,0.002]
[1746413866745,0.01766,94636.0,94633.0,0.002]
[1746413867369,0.01766,94636.0,94631.0,0.00104552]
[1746413867692,0.01766,94636.0,94631.0,0.00304552]
[1746413867930,0.00106,94636.0,94631.0,0.00304552]
[1746413868133,0.00106,94636.0,94632.0,0.00155491]
[1746413869269,0.01763882,94636.0,94632.0,0.00155491]
[1746413869482,0.01763882,94636.0,94632.0,0.002]
[1746413869632,0.00106,94636.0,94632.0,0.002]
[1746413872709,0.01763883,94636.0,94632.0,0.002]
[1746413873316,0.03263883,94636.0,94632.0,0.002]
[1746413873671,0.01763883,94636.0,94632.0,0.002]
[1746413874039,0.0306,94633.0,94632.0,0.002]
[1746413874189,0.03827212,94633.0,94632.0,0.002]
[1746413874391,0.04091423,94633.0,94632.0,0.002]
[1746413875203,0.0305,94631.0,94627.0,0.01561315]
[1746413875399,0.0305,94629.0,94599.0,0.0634601]
[1746413875637,0.0305,94619.0,94611.0,0.00013657]
[1746413875843,0.00264275,94618.0,94606.0,0.04268801]
[1746413876019,0.0161,94611.0,94606.0,0.00804571]
[1746413876219,0.0155,94609.0,94606.0,0.00804571]
[1746413876469,0.0316,94607.0,94606.0,0.00804571]
[1746413876720,0.00106,94607.0,94599.0,0.03188011]
[1746413876957,0.0313,94605.0,94599.0,0.03195731]
[1746413877149,0.05371682,94604.0,94599.0,0.03195731]
[1746413877380,0.0313,94603.0,94599.0,0.02512588]
[1746413877536,0.00264302,94602.0,94599.0,0.02512588]
[1746413877745,0.0313,94600.0,94599.0,0.02512588]
[1746413877942,0.03500302,94600.0,94599.0,0.02512588]
[1746413878141,0.0436107,94600.0,94599.0,0.02512588]
[1746413878370,0.06019665,94600.0,94599.0,0.02512588]
[1746413878570,0.06832341,94600.0,94599.0,7.72e-05]
[1746413879415,0.06832341,94600.0,94599.0,0.0020772]
[1746413879805,0.06832341,94600.0,94599.0,7.72e-05]
[1746413880097,0.06932341,94600.0,94599.0,7.72e-05]
[1746413880623,0.0304,94599.0,94569.0,0.39642569]
[1746413880749,0.0154,94597.0,94562.0,0.0165]
[1746413880947,0.0154,94595.0,94556.0,0.0158]
[1746413881145,0.0304,94588.0,94556.0,0.0158]
[1746413881414,0.01923247,94587.0,94551.0,0.11138939]
[1746413881622,0.05264275,94586.0,94551.0,0.11138939]
[1746413881850,0.00264358,94585.0,94551.0,0.11138939]
[1746413882061,0.00370358,94585.0,94551.0,0.11138939]
[1746413882483,0.00370358,94585.0,94551.0,0.0318]
[1746413883251,0.00370358,94585.0,94561.0,0.35092]
[1746413883671,0.0158,94583.0,94561.0,0.35092]
[1746413883871,0.0165,94581.0,94561.0,0.35092]
[1746413884074,0.00264371,94580.0,94561.0,0.35092]
[1746413884298,0.00370371,94580.0,94561.0,0.35092]
[1746413884502,0.01659039,94576.0,94561.0,0.34992]
[1746413884820,0.00895392,94575.0,94561.0,0.35192]
[1746413885039,0.0165,94574.0,94561.0,0.002]
[1746413885219,0.01844408,94573.0,94561.0,0.002]
[1746413885423,0.01950408,94573.0,94536.0,0.0152]
[1746413885752,0.01950408,94573.0,94561.0,0.004]
[1746413885953,0.03911932,94572.0,94561.0,0.004]
[1746413886128,0.00264408,94571.0,94536.0,0.0152]
[1746413886329,0.00370408,94571.0,94536.0,0.0152]
[1746413886674,0.00370408,94571.0,94561.0,0.004]
[1746413887438,0.00384043,94571.0,94561.0,0.004]
[1746413888068,0.00384043,94571.0,94536.0,0.0152]
[1746413888282,0.00484043,94571.0,94536.0,0.0192]
[1746413888657,0.01659209,94563.0,94536.0,0.0152]
[1746413888865,0.00264408,94562.0,94536.0,0.0152]
[1746413889063,0.03550408,94562.0,94561.0,0.004]
[1746413889463,0.03550408,94562.0,94537.0,0.0015598]
[1746413889961,0.01756,94562.0,94537.0,0.0015598]
[1746413890185,0.00106,94562.0,94537.0,0.0015598]
[1746413890360,0.00264394,94561.0,94537.0,0.0015598]
[1746413890562,0.00370394,94561.0,94537.0,0.0015598]
[1746413891719,0.00470394,94561.0,94537.0,0.0075598]
[1746413893986,0.00470394,94561.0,94537.0,0.05107835]
[1746413895280,0.00470394,94561.0,94537.0,0.0075598]
[1746413895941,0.00470394,94561.0,94537.0,0.006]
[1746413896344,0.00206,94561.0,94537.0,0.006]
[1746413897396,0.00206,94561.0,94538.0,0.00155971]
[1746413898324,0.00106,94561.0,94538.0,0.00155971]
[1746413898544,0.00106,94561.0,94539.0,0.00155971]
[1746413898710,0.00206,94561.0,94539.0,0.00155971]
[1746413899119,0.00206,94561.0,94538.0,0.006]
[1746413899518,0.01659201,94556.0,94537.0,0.00155971]
[1746413899716,0.01765201,94556.0,94539.0,0.006]
[1746413900666,0.00106,94556.0,94539.0,0.006]
[1746413900878,0.00106,94556.0,94540.0,0.00155971]
[1746413901084,0.00106,94556.0,94537.0,0.00155971]
[1746413901542,0.00106,94556.0,94538.0,0.006]
[1746413901946,0.00106,94556.0,94537.0,0.00155971]
[1746413902169,0.00106,94556.0,94537.0,0.00855971]
[1746413902389,0.00206,94556.0,94537.0,0.00855971]
[1746413902926,0.00206,94556.0,94537.0,0.05217825]
[1746413903703,0.00047696,94556.0,94537.0,0.05217825]
[1746413903901,0.01659203,94552.0,94537.0,0.05217825]
[1746413904109,0.01659203,94552.0,94537.0,0.007]
[1746413904444,0.01765203,94552.0,94537.0,0.007]
[1746413904790,0.01765203,94552.0,94536.0,0.00155974]
[1746413904996,0.01865203,94552.0,94537.0,0.008]
[1746413905607,0.01765203,94552.0,94538.0,0.00155975]
[1746413905810,0.01865203,94552.0,94538.0,0.00155975]
[1746413906417,0.01765203,94552.0,94538.0,0.00155975]
[1746413906693,0.01865203,94552.0,94539.0,0.00155974]
[1746413907679,0.01865203,94552.0,94537.0,0.008]
[1746413908183,0.01865203,94552.0,94536.0,0.00155974]
[1746413908184,0.01765203,94552.0,94536.0,0.00155974]
[1746413908379,0.01865203,94552.0,94538.0,0.008]
[1746413908607,0.01865203,94552.0,94539.0,0.00155974]
[1746413908783,0.01765203,94552.0,94539.0,0.00155974]
[1746413909122,0.01865203,94552.0,94539.0,0.00155974]
[1746413909500,0.00206,94552.0,94540.0,0.00155974]
[1746413909845,0.00106,94552.0,94540.0,0.00155974]
[1746413910041,0.00206,94552.0,94539.0,0.008]
[1746413910583,0.00206,94552.0,94539.0,0.00955972]
[1746413910783,0.00206,94552.0,94539.0,0.008]
[1746413911144,0.00106,94552.0,94536.0,0.00155972]
[1746413911322,0.00106,94552.0,94540.0,0.00155972]
[1746413911523,0.00206,94552.0,94540.0,0.00955972]
[1746413912072,0.00106,94552.0,94540.0,0.00155972]
[1746413912347,0.00106,94552.0,94535.0,0.39642569]
[1746413912348,0.01659228,94550.0,94541.0,0.00155972]
[1746413912573,0.01765228,94550.0,94541.0,0.00155972]
[1746413913456,0.01765228,94550.0,94542.0,0.04059854]
[1746413913652,0.01765228,94550.0,94543.0,0.00155953]
[1746413915101,0.01865228,94550.0,94544.0,0.00155954]
[1746413915715,0.01765228,94550.0,94544.0,0.00155954]
[1746413915888,0.01865228,94550.0,94543.0,0.008]
[1746413916246,0.01865228,94550.0,94544.0,0.00155954]
[1746413916448,0.01765228,94550.0,94544.0,0.00155954]
[1746413916645,0.01865228,94550.0,94544.0,0.008]
[1746413917092,0.01865228,94550.0,94545.0,0.00155954]
[1746413917912,0.01765228,94550.0,94545.0,0.00155954]
[1746413918081,0.01765228,94550.0,94536.0,0.00155956]
[1746413918397,0.01865228,94550.0,94545.0,0.008]
[1746413918609,0.01865228,94550.0,94546.0,0.00155957]
[1746413919010,0.01765228,94550.0,94546.0,0.00155957]
[1746413919155,0.01865228,94550.0,94537.0,0.04743315]
[1746413919356,0.00206,94550.0,94538.0,0.00155959]
[1746413920236,0.00106,94550.0,94539.0,0.04534184]
[1746413920427,0.00106,94550.0,94540.0,0.00155951]
[1746413921652,0.00206,94550.0,94546.0,0.008]
[1746413921891,0.00206,94550.0,94547.0,0.00155952]
[1746413922200,0.00106,94550.0,94547.0,0.00155952]
[1746413922443,0.00106,94550.0,94540.0,0.00155951]
[1746413922680,0.00206,94550.0,94540.0,0.00955951]
[1746413923061,0.00106,94550.0,94540.0,0.00155951]
[1746413923458,0.00206,94550.0,94547.0,0.008]
[1746413923668,0.0165921,94548.0,94547.0,0.008]
[1746413923849,0.0176521,94548.0,94547.0,0.0234]
[1746413924663,0.0176521,94548.0,94547.0,0.0154]
[1746413924911,0.00013635,94571.0,94548.0,0.01454085]
[1746413925077,0.001,94550.0,94549.0,0.04584085]
[1746413925277,0.00206,94550.0,94549.0,0.05187902]
[1746413925508,0.00106,94550.0,94549.0,0.05187902]
[1746413925699,0.00106,94550.0,94549.0,0.05343752]
[1746413925954,0.00013635,94571.0,94556.0,0.01454085]
[1746413926146,0.00013635,94571.0,94560.0,0.01454085]
[1746413926147,0.00119635,94571.0,94560.0,0.01454085]
[1746413926351,0.00119635,94571.0,94563.0,0.0151]
[1746413926574,0.00119635,94571.0,94565.0,0.01454085]
[1746413926878,0.00119635,94571.0,94566.0,0.00155743]
[1746413927811,0.00119635,94571.0,94568.0,0.0159]
[1746413928016,0.00119635,94571.0,94569.0,0.00155742]
[1746413928145,0.01878385,94571.0,94570.0,0.0309]
[1746413928693,0.01778385,94571.0,94570.0,0.04544085]
[1746413929054,0.01878385,94571.0,94570.0,0.04699839]
[1746413929249,0.01878385,94571.0,94570.0,0.05259823]
[1746413929463,0.00219635,94571.0,94570.0,0.05259823]
[1746413929994,0.00119635,94571.0,94570.0,0.05259823]
[1746413930562,0.00119635,94571.0,94570.0,0.10026452]
[1746413931402,0.00219635,94571.0,94570.0,0.50463021]